fUST/lending_fUST_20250625
["ID","MTS","AMOUNT","RATE_DAILY","PERIOD"]
[367572252,1750863047050,-460.0,0.00017098,2]
[367572254,1750863047060,-1690.11,0.00017098,2]
[367572256,1750863047070,-1203.65,0.00017098,2]
[367572258,1750863047080,-151.0,0.00017099,2]
[367572260,1750863047089,-151.0,0.00017099,2]
[367572262,1750863047099,-283.69723569,0.00017099,2]
[367572264,1750863047109,-460.0,0.00017099,2]
[367572267,1750863047121,-460.0,0.00017099,2]
[367572269,1750863047130,-460.0,0.00017099,2]
[367572270,1750863047140,-460.0,0.00017099,2]
[367572272,1750863047149,-460.0,0.00017099,2]
[367572274,1750863047158,-238.671123,0.000171,2]
[367572276,1750863047168,-460.0,0.000171,2]
[367572278,1750863047177,-155.38,0.000171,2]
[367572280,1750863047187,-509.00053076,0.000171,2]
[367572283,1750863047202,-452.47968654,0.000171,2]
[367572285,1750863047212,-460.0,0.000171,2]
[367572287,1750863047223,-398.05,0.000171,2]
[367572289,1750863047232,-460.0,0.000171,2]
[367572291,1750863047241,-460.0,0.000171,2]
[367572293,1750863047251,-5997.13946175,0.000171,2]
[367572295,1750863047260,-705.930024,0.00017101,2]
[367572297,1750863047270,-705.930024,0.00017101,2]
[367572299,1750863047279,-357.395878,0.00017101,2]
[367572301,1750863047288,-357.395878,0.00017101,2]
[367572303,1750863047298,-151.0,0.00017101,2]
[367572305,1750863047307,-151.0,0.00017101,2]
[367572307,1750863047317,-238.671123,0.00017103,2]
[367572309,1750863047329,-705.930024,0.00017107,2]
[367572311,1750863047339,-705.930024,0.00017107,2]
[367572314,1750863047348,-151.0,0.00017127,2]
[367572315,1750863047358,-151.255685,0.00017127,2]
[367572317,1750863047367,-151.0,0.00017127,2]
[367572319,1750863047377,-263.682817,0.00017127,2]
[367572321,1750863047387,-263.682817,0.00017127,2]
[367572323,1750863047397,-151.0,0.00017127,2]
[367572325,1750863047406,-151.0,0.00017127,2]
[367572327,1750863047416,-5997.13946154,0.00017141,2]
[367572330,1750863047426,-689.0,0.00017162,2]
[367572331,1750863047436,-500.0,0.0001719,2]
[367572333,1750863047445,-357.395878,0.000172,2]
[367572336,1750863047455,-357.395878,0.000172,2]
[367572337,1750863047465,-999.99999901,0.000172,2]
[367572340,1750863047476,-5000.0,0.00017205,2]
[367572342,1750863047486,-151.0,0.00017205,2]
[367572344,1750863047496,-500.0,0.00017207,2]
[367572346,1750863047505,-500.0,0.00017207,2]
[367572348,1750863047515,-500.0,0.00017207,2]
[367572350,1750863047524,-500.0,0.00017246,2]
[367572352,1750863047534,-501.32449287,0.00017246,2]
[367572354,1750863047543,-460.0,0.00017267,2]
[367572356,1750863047552,-289.62656306,0.00017267,2]
[367572358,1750863047562,-531.57,0.00017267,2]
[367572360,1750863047571,-460.0,0.00017267,2]
[367572362,1750863047581,-1512.62,0.00017267,2]
[367572364,1750863047591,-3197.88,0.00017267,2]
[367572366,1750863047600,-437.04,0.00017268,2]
[367572367,1750863047610,-460.0,0.00017268,2]
[367572369,1750863047621,-460.0,0.00017268,2]
[367572372,1750863047631,-460.0,0.00017268,2]
[367572373,1750863047641,-460.0,0.00017268,2]
[367572375,1750863047651,-460.0,0.00017268,2]
[367572377,1750863047660,-460.0,0.00017268,2]
[367572379,1750863047674,-460.0,0.00017268,2]
[367572382,1750863047684,-460.0,0.00017268,2]
[367572384,1750863047693,-460.0,0.00017268,2]
[367572386,1750863047703,-460.0,0.00017268,2]
[367572388,1750863047712,-552.06,0.00017268,2]
[367572390,1750863047723,-563.84,0.00017268,2]
[367572392,1750863047733,-2892.61,0.00017268,2]
[367572394,1750863047743,-460.0,0.00017268,2]
[367572396,1750863047753,-2442.54,0.00017268,2]
[367572398,1750863047762,-786.4,0.00017268,2]
[367572400,1750863047772,-460.0,0.00017268,2]
[367572402,1750863047781,-623.35,0.00017268,2]
[367572404,1750863047791,-903.34,0.00017268,2]
[367572406,1750863047801,-460.0,0.00017268,2]
[367572408,1750863047810,-1515.63,0.00017268,2]
[367572409,1750863047820,-460.0,0.00017268,2]
[367572411,1750863047830,-460.0,0.00017268,2]
[367572414,1750863047840,-576.36,0.00017268,2]
[367572416,1750863047849,-460.0,0.00017268,2]
[367572418,1750863047860,-460.0,0.00017268,2]
[367572419,1750863047870,-460.0,0.00017268,2]
[367572421,1750863047880,-460.0,0.00017268,2]
[367572424,1750863047890,-460.0,0.00017268,2]
[367572425,1750863047899,-460.0,0.00017268,2]
[367572427,1750863047909,-944.02,0.00017268,2]
[367572429,1750863047918,-460.0,0.00017268,2]
[367572431,1750863047927,-586.96,0.00017268,2]
[367572433,1750863047937,-914.07,0.00017268,2]
[367572435,1750863047946,-3753.5,0.00017268,2]
[367572437,1750863047955,-460.0,0.00017268,2]
[367572439,1750863047965,-1518.03,0.00017268,2]
[367572441,1750863047976,-633.03,0.00017268,2]
[367572443,1750863047987,-466.62,0.00017268,2]
[367572445,1750863047998,-460.0,0.00017268,2]
[367572447,1750863048007,-467.73,0.00017268,2]
[367572449,1750863048017,-493.78,0.00017268,2]
[367572451,1750863048027,-460.0,0.00017268,2]
[367572453,1750863048036,-460.0,0.00017268,2]
[367572455,1750863048046,-460.0,0.00017268,2]
[367572457,1750863048055,-460.0,0.00017268,2]
[367572459,1750863048064,-460.0,0.00017268,2]
[367572461,1750863048074,-460.0,0.00017268,2]
[367572463,1750863048083,-729.21,0.00017269,2]
[367572465,1750863048093,-242.13,0.00017269,2]
[367572467,1750863048103,-460.0,0.00017269,2]
[367572469,1750863048112,-460.0,0.00017269,2]
[367572471,1750863048121,-460.0,0.00017269,2]
[367572473,1750863048131,-527.98,0.00017269,2]
[367572475,1750863048140,-502.96,0.00017269,2]
[367572477,1750863048149,-1027.12,0.00017269,2]
[367572479,1750863048159,-821.95,0.00017269,2]
[367572481,1750863048168,-460.0,0.00017269,2]
[367572483,1750863048177,-460.0,0.00017269,2]
[367572498,1750863048313,-460.0,0.00017269,2]
[367572500,1750863048323,-555.06,0.00017269,2]
[367572502,1750863048334,-460.0,0.00017269,2]
[367572504,1750863048343,-460.0,0.00017269,2]
[367572505,1750863048352,-460.0,0.00017269,2]
[367572507,1750863048362,-460.0,0.00017269,2]
[367572509,1750863048372,-2046.28,0.00017269,2]
[367572511,1750863048382,-460.0,0.00017269,2]
[367572513,1750863048391,-7733.45,0.00017269,2]
[367572515,1750863048401,-460.0,0.00017269,2]
[367572517,1750863048410,-928.39,0.00017269,2]
[367572519,1750863048420,-1923.49,0.00017269,2]
[367572521,1750863048430,-460.0,0.00017269,2]
[367572523,1750863048439,-318.07,0.0001727,2]
[367572525,1750863048449,-460.0,0.0001727,2]
[367572527,1750863048458,-994.72,0.0001727,2]
[367572529,1750863048468,-460.0,0.0001727,2]
[367572531,1750863048480,-151.0,0.0001727,2]
[367572533,1750863048489,-460.0,0.0001727,2]
[367572535,1750863048498,-460.0,0.0001727,2]
[367572537,1750863048508,-151.0,0.0001727,2]
[367572539,1750863048517,-559.76,0.0001727,2]
[367572541,1750863048526,-828.26,0.0001727,2]
[367572543,1750863048535,-460.0,0.0001727,2]
[367572545,1750863048545,-445.26152178,0.0001727,2]
[367572547,1750863048554,-673.51,0.0001727,2]
[367572549,1750863048564,-631.14,0.0001727,2]
[367572551,1750863048573,-2417.07,0.0001727,2]
[367572553,1750863048583,-460.0,0.0001727,2]
[367572555,1750863048592,-877.84,0.0001727,2]
[367572557,1750863048601,-151.0,0.0001727,2]
[367572559,1750863048610,-151.0,0.0001727,2]
[367572561,1750863048620,-971.87,0.0001727,2]
[367572563,1750863048629,-460.0,0.0001727,2]
[367572565,1750863048638,-2599.3,0.0001727,2]
[367572567,1750863048647,-460.0,0.00017271,2]
[367572569,1750863048657,-460.0,0.00017271,2]
[367572571,1750863048667,-549.72,0.00017271,2]
[367572573,1750863048680,-151.0,0.00017271,2]
[367572575,1750863048690,-460.0,0.00017271,2]
[367572577,1750863048699,-460.0,0.00017271,2]
[367572578,1750863048708,-460.0,0.00017271,2]
[367572580,1750863048718,-460.0,0.00017271,2]
[367572582,1750863048733,-460.0,0.00017271,2]
[367572584,1750863048744,-460.0,0.00017271,2]
[367572586,1750863048753,-500.0,0.00017277,2]
[367572588,1750863048763,-810.00020175,0.00017292,2]
[367572590,1750863048773,-219.334196,0.0001733,2]
[367572592,1750863048783,-151.34855,0.0001733,2]
[367572594,1750863048793,-151.34855,0.0001733,2]
[367572596,1750863048803,-500.0,0.00017335,2]
[367572598,1750863048812,-500.0,0.00017335,2]
[367572600,1750863048821,-151.0,0.00017338,2]
[367572602,1750863048831,-836.86812089,0.00017338,2]
[367572604,1750863048840,-846.80634355,0.00017338,2]
[367572606,1750863048849,-12558.06783089,0.00017338,2]
[367572608,1750863048858,-160.0,0.00017338,2]
[367572610,1750863048867,-425.18553072,0.00017338,2]
[367572612,1750863048877,-160.0,0.00017338,2]
[367572614,1750863048886,-160.0,0.00017338,2]
[367572616,1750863048896,-160.0,0.00017338,2]
[367572618,1750863048905,-213.69531788,0.00017338,2]
[367572620,1750863048914,-230.22714675,0.00017338,2]
[367572622,1750863048924,-160.0,0.00017338,2]
[367572624,1750863048934,-160.0,0.00017338,2]
[367572626,1750863048944,-524.21181985,0.00017338,2]
[367572628,1750863048953,-160.0,0.00017338,2]
[367572630,1750863048963,-160.0,0.00017339,2]
[367572632,1750863048975,-200.05,0.00017342,2]
[367572634,1750863048984,-554.97647579,0.00017353,2]
[367572636,1750863048992,-501.86867376,0.00017353,2]
[367572638,1750863049001,-502.29752276,0.00017353,2]
[367572640,1750863049011,-286.99970969,0.00017356,2]
[367572641,1750863049020,-500.0,0.00017356,2]
[367572643,1750863049030,-307.42,0.00017372,2]
[367572646,1750863049039,-1524.16,0.00017372,2]
[367572647,1750863049048,-429.41846862,0.00017372,2]
[367572649,1750863049058,-460.0,0.00017372,2]
[367572651,1750863049067,-1690.11,0.00017372,2]
[367572653,1750863049077,-1203.65,0.00017372,2]
[367572655,1750863049087,-238.671123,0.00017373,2]
[367572657,1750863049096,-705.930024,0.00017373,2]
[367572659,1750863049106,-705.930024,0.00017373,2]
[367572661,1750863049115,-460.0,0.00017373,2]
[367572663,1750863049124,-151.0,0.00017373,2]
[367572665,1750863049134,-460.0,0.00017373,2]
[367572667,1750863049143,-460.0,0.00017373,2]
[367572669,1750863049154,-307.231184,0.00017373,2]
[367572671,1750863049163,-460.0,0.00017373,2]
[367572673,1750863049173,-307.231184,0.00017373,2]
[367572675,1750863049182,-420.15,0.00017373,2]
[367572677,1750863049192,-151.0,0.00017373,2]
[367572679,1750863049201,-263.682817,0.00017373,2]
[367572681,1750863049210,-263.682817,0.00017373,2]
[367572683,1750863049219,-151.0,0.00017373,2]
[367572684,1750863049231,-151.0,0.00017373,2]
[367572687,1750863049241,-500.0,0.00017373,2]
[367572688,1750863049251,-501.24090785,0.00017373,2]
[367572690,1750863049261,-500.0,0.00017373,2]
[367572692,1750863049271,-500.0,0.00017373,2]
[367572694,1750863049280,-588.49752767,0.00017373,2]
[367572696,1750863049290,-379.00249616,0.00017373,2]
[367572699,1750863049299,-151.0,0.00017374,2]
[367572701,1750863049309,-460.0,0.00017374,2]
[367572702,1750863049318,-151.0,0.00017374,2]
[367572704,1750863049327,-151.0,0.00017374,2]
[367572706,1750863049338,-412.33803501,0.00017374,2]
[367572708,1750863049347,-460.0,0.00017374,2]
[367572711,1750863049361,-600.82849796,0.00017374,2]
[367572714,1750863049377,-151.0,0.00017374,2]
[367572716,1750863049393,-151.0,0.00017374,2]
[367572718,1750863049405,-238.671123,0.00017375,2]
[367572720,1750863049419,-357.395878,0.00017375,2]
[367572721,1750863049433,-357.395878,0.00017375,2]
[367572722,1750863049448,-705.930024,0.00017376,2]
[367572723,1750863049462,-705.930024,0.00017376,2]
[367572724,1750863049479,-151.0,0.00017381,2]
[367572725,1750863049495,-5997.13946154,0.00017383,2]
[367572726,1750863049509,-357.395878,0.00017392,2]
[367572727,1750863049522,-357.395878,0.00017392,2]
[367572728,1750863049535,-602.7981794,0.000174,2]
[367572729,1750863049550,-153.0,0.00017452,2]
[367572730,1750863049564,-153.0,0.00017452,2]
[367572732,1750863049577,-153.0,0.00017452,2]
[367572734,1750863049587,-153.0,0.00017452,2]
[367572736,1750863049600,-153.0,0.00017452,2]
[367572739,1750863049613,-153.0,0.00017452,2]
[367572741,1750863049626,-153.0,0.00017452,2]
[367572744,1750863049640,-153.0,0.00017452,2]
[367572746,1750863049654,-153.0,0.00017452,2]
[367572748,1750863049668,-153.0,0.00017452,2]
[367572751,1750863049686,-153.0,0.00017452,2]
[367572753,1750863049699,-151.0,0.00017453,2]
[367572755,1750863049711,-603.46305526,0.00017541,2]
[367572757,1750863049724,-531.57,0.00017541,2]
[367572760,1750863049739,-460.0,0.00017541,2]
[367572762,1750863049754,-1512.62,0.00017541,2]
[367572765,1750863049764,-3197.88,0.00017541,2]
[367572767,1750863049776,-460.0,0.00017542,2]
[367572769,1750863049791,-460.0,0.00017542,2]
[367572772,1750863049806,-214.99201422,0.00017542,2]
[367572774,1750863049820,-460.0,0.00017542,2]
[367572776,1750863049832,-527.56,0.00017542,2]
[367572778,1750863049845,-460.0,0.00017542,2]
[367572780,1750863049856,-460.0,0.00017542,2]
[367572783,1750863049868,-460.0,0.00017542,2]
[367572785,1750863049879,-460.0,0.00017542,2]
[367572787,1750863049891,-552.06,0.00017542,2]
[367572790,1750863049904,-2892.61,0.00017542,2]
[367572792,1750863049916,-460.0,0.00017542,2]
[367572794,1750863049929,-2442.54,0.00017542,2]
[367572797,1750863049941,-786.4,0.00017542,2]
[367572799,1750863049952,-460.0,0.00017542,2]
[367572801,1750863049964,-623.35,0.00017542,2]
[367572803,1750863049979,-903.34,0.00017542,2]
[367572805,1750863049990,-1515.63,0.00017542,2]
[367572808,1750863050003,-460.0,0.00017542,2]
[367572810,1750863050015,-460.0,0.00017542,2]
[367572813,1750863050027,-460.0,0.00017542,2]
[367572815,1750863050040,-576.36,0.00017542,2]
[367572817,1750863050052,-204.82717322,0.00017542,2]
[367572819,1750863050064,-460.0,0.00017542,2]
[367572822,1750863050076,-460.0,0.00017542,2]
[367572824,1750863050088,-460.0,0.00017542,2]
[367572826,1750863050100,-460.0,0.00017542,2]
[367572829,1750863050114,-460.0,0.00017542,2]
[367572831,1750863050126,-944.02,0.00017542,2]
[367572833,1750863050138,-460.0,0.00017542,2]
[367572835,1750863050150,-586.96,0.00017542,2]
[367572838,1750863050162,-914.07,0.00017542,2]
[367572840,1750863050175,-3753.5,0.00017542,2]
[367572842,1750863050187,-460.0,0.00017542,2]
[367572844,1750863050199,-1518.03,0.00017542,2]
[367572847,1750863050212,-633.03,0.00017542,2]
[367572849,1750863050223,-466.62,0.00017542,2]
[367572851,1750863050235,-460.0,0.00017542,2]
[367572853,1750863050247,-467.73,0.00017542,2]
[367572856,1750863050259,-493.78,0.00017542,2]
[367572858,1750863050271,-460.0,0.00017542,2]
[367572860,1750863050283,-460.0,0.00017542,2]
[367572862,1750863050295,-460.0,0.00017542,2]
[367572865,1750863050307,-460.0,0.00017542,2]
[367572867,1750863050319,-460.0,0.00017542,2]
[367572869,1750863050330,-729.21,0.00017543,2]
[367572872,1750863050342,-460.0,0.00017543,2]
[367572874,1750863050354,-311.31,0.00017543,2]
[367572876,1750863050367,-194.21409495,0.00017543,2]
[367572879,1750863050379,-527.98,0.00017543,2]
[367572881,1750863050392,-1027.12,0.00017543,2]
[367572883,1750863050403,-821.95,0.00017543,2]
[367572885,1750863050413,-460.0,0.00017543,2]
[367572887,1750863050422,-460.0,0.00017543,2]
[367572889,1750863050432,-295.4470454,0.00017543,2]
[367572891,1750863050441,-555.06,0.00017543,2]
[367572893,1750863050450,-460.0,0.00017543,2]
[367572895,1750863050460,-460.0,0.00017543,2]
[367572897,1750863050469,-460.0,0.00017543,2]
[367572899,1750863050479,-447.31237634,0.00017543,2]
[367572901,1750863050489,-2046.28,0.00017543,2]
[367572904,1750863050498,-409.9871153,0.00017543,2]
[367572906,1750863050508,-7733.45,0.00017543,2]
[367572908,1750863050517,-460.0,0.00017543,2]
[367572910,1750863050527,-928.39,0.00017543,2]
[367572912,1750863050537,-1923.49,0.00017543,2]
[367572914,1750863050546,-151.0,0.00017543,2]
[367572916,1750863050556,-460.0,0.00017543,2]
[367572918,1750863050565,-186.86,0.00017544,2]
[367572920,1750863050575,-994.72,0.00017544,2]
[367572922,1750863050584,-460.0,0.00017544,2]
[367572924,1750863050594,-151.0,0.00017544,2]
[367572926,1750863050603,-460.0,0.00017544,2]
[367572928,1750863050613,-460.0,0.00017544,2]
[367572951,1750863050822,-559.76,0.00017544,2]
[367572954,1750863050841,-828.26,0.00017544,2]
[367572957,1750863050854,-673.51,0.00017544,2]
[367572959,1750863050863,-631.14,0.00017544,2]
[367572961,1750863050872,-2417.07,0.00017544,2]
[367572963,1750863050881,-460.0,0.00017544,2]
[367572965,1750863050891,-877.84,0.00017544,2]
[367572967,1750863050901,-971.87,0.00017544,2]
[367572969,1750863050910,-460.0,0.00017544,2]
[367572971,1750863050919,-2599.3,0.00017544,2]
[367572973,1750863050928,-153.0,0.00017544,2]
[367572975,1750863050937,-460.0,0.00017545,2]
[367572977,1750863050947,-151.274964,0.00017545,2]
[367572979,1750863050956,-151.0,0.00017545,2]
[367572981,1750863050965,-151.0,0.00017545,2]
[367572983,1750863050977,-460.0,0.00017545,2]
[367572985,1750863050987,-549.72,0.00017545,2]
[367572987,1750863050997,-460.0,0.00017545,2]
[367572989,1750863051006,-592.33223443,0.00017545,2]
[367572991,1750863051015,-460.0,0.00017545,2]
[367572993,1750863051025,-460.0,0.00017545,2]
[367572995,1750863051034,-460.0,0.00017545,2]
[367572997,1750863051043,-463.45030882,0.00017545,2]
[367572999,1750863051053,-1019.76312072,0.00017568,2]
[367573001,1750863051062,-1500.0,0.00017568,2]
[367573003,1750863051071,-1000.0,0.00017568,2]
[367573005,1750863051080,-1002.42028969,0.00017568,2]
[367573007,1750863051089,-1500.0,0.00017568,2]
[367573009,1750863051098,-1050.86069672,0.00017568,2]
[367573011,1750863051108,-1500.0,0.00017568,2]
[367573013,1750863051118,-168.86370719,0.00017568,2]
[367573015,1750863051127,-238.671123,0.00017609,2]
[367573017,1750863051136,-361.1741641,0.00017616,2]
[367573019,1750863051145,-705.930024,0.00017624,2]
[367573021,1750863051155,-705.930024,0.00017624,2]
[367573023,1750863051165,-151.34855,0.00017624,2]
[367573025,1750863051174,-151.34855,0.00017624,2]
[367573027,1750863051183,-5997.13946154,0.00017624,2]
[367573029,1750863051191,-151.000001,0.00017646,2]
[367573031,1750863051201,-151.0,0.00017646,2]
[367573033,1750863051210,-151.0,0.00017646,2]
[367573035,1750863051220,-1524.16,0.00017646,2]
[367573038,1750863051234,-460.0,0.00017646,2]
[367573040,1750863051243,-1690.11,0.00017646,2]
[367573042,1750863051252,-1203.65,0.00017646,2]
[367573044,1750863051261,-151.0,0.00017647,2]
[367573046,1750863051271,-460.0,0.00017647,2]
[367573048,1750863051281,-460.0,0.00017647,2]
[367573050,1750863051290,-163.47,0.00017647,2]
[367573052,1750863051299,-460.0,0.00017647,2]
[367573054,1750863051308,-151.0,0.00017648,2]
[367573056,1750863051318,-267.276859,0.00017648,2]
[367573058,1750863051327,-460.0,0.00017648,2]
[367573060,1750863051336,-263.682817,0.00017648,2]
[367573062,1750863051345,-263.682817,0.00017648,2]
[367573064,1750863051355,-151.0,0.00017648,2]
[367573066,1750863051364,-151.0,0.00017648,2]
[367573068,1750863051373,-238.671123,0.00017649,2]
[367573070,1750863051382,-705.930024,0.00017649,2]
[367573072,1750863051391,-705.930024,0.00017649,2]
[367573074,1750863051400,-357.395878,0.00017649,2]
[367573076,1750863051410,-357.395878,0.00017649,2]
[367573078,1750863051419,-151.0,0.00017651,2]
[367573080,1750863051428,-357.395878,0.00017692,2]
[367573082,1750863051438,-357.395878,0.00017692,2]
[367573084,1750863051447,-151.0,0.000177,2]
[367573086,1750863051456,-5000.0,0.00017753,2]
[367573088,1750863051465,-500.0,0.00017755,2]
[367573090,1750863051475,-689.0,0.00017768,2]
[367573092,1750863051484,-500.0,0.00017794,2]
[367573094,1750863051494,-642.207,0.000178,2]
[367573096,1750863051502,-500.0,0.00017801,2]
[367573098,1750863051511,-677.0,0.00017801,2]
[367573100,1750863051521,-238.671121,0.00017809,2]
[367573102,1750863051530,-531.57,0.00017815,2]
[367573104,1750863051539,-460.0,0.00017815,2]
[367573106,1750863051548,-1512.62,0.00017815,2]
[367573108,1750863051557,-3197.88,0.00017815,2]
[367573110,1750863051567,-460.0,0.00017816,2]
[367573112,1750863051576,-460.0,0.00017816,2]
[367573114,1750863051585,-460.0,0.00017816,2]
[367573116,1750863051595,-460.0,0.00017816,2]
[367573118,1750863051603,-460.0,0.00017816,2]
[367573120,1750863051613,-315.44,0.00017816,2]
[367573122,1750863051622,-552.06,0.00017816,2]
[367573124,1750863051631,-2892.61,0.00017816,2]
[367573126,1750863051640,-460.0,0.00017816,2]
[367573128,1750863051649,-2442.54,0.00017816,2]
[367573130,1750863051659,-786.4,0.00017816,2]
[367573132,1750863051670,-460.0,0.00017816,2]
[367573134,1750863051680,-623.35,0.00017816,2]
[367573136,1750863051690,-903.34,0.00017816,2]
[367573138,1750863051698,-1515.63,0.00017816,2]
[367573140,1750863051707,-460.0,0.00017816,2]
[367573142,1750863051716,-460.0,0.00017816,2]
[367573144,1750863051726,-460.0,0.00017816,2]
[367573146,1750863051736,-576.36,0.00017816,2]
[367573148,1750863051746,-460.0,0.00017816,2]
[367573150,1750863051755,-460.0,0.00017816,2]
[367573152,1750863051765,-460.0,0.00017816,2]
[367573154,1750863051774,-429.95,0.00017816,2]
[367573155,1750863051783,-460.0,0.00017816,2]
[367573158,1750863051792,-944.02,0.00017816,2]
[367573159,1750863051801,-460.0,0.00017816,2]
[367573161,1750863051810,-586.96,0.00017816,2]
[367573163,1750863051820,-914.07,0.00017816,2]
[367573165,1750863051829,-3753.5,0.00017816,2]
[367573167,1750863051838,-460.0,0.00017816,2]
[367573170,1750863051847,-1518.03,0.00017816,2]
[367573172,1750863051856,-633.03,0.00017816,2]
[367573173,1750863051865,-466.62,0.00017816,2]
[367573176,1750863051875,-460.0,0.00017816,2]
[367573178,1750863051884,-467.73,0.00017816,2]
[367573180,1750863051893,-493.78,0.00017816,2]
[367573182,1750863051902,-460.0,0.00017816,2]
[367573183,1750863051911,-460.0,0.00017816,2]
[367573186,1750863051920,-460.0,0.00017816,2]
[367573188,1750863051929,-460.0,0.00017816,2]
[367573190,1750863051938,-460.0,0.00017816,2]
[367573191,1750863051949,-729.21,0.00017817,2]
[367573194,1750863051958,-460.0,0.00017817,2]
[367573196,1750863051969,-527.98,0.00017817,2]
[367573198,1750863051980,-1027.12,0.00017817,2]
[367573200,1750863051989,-821.95,0.00017817,2]
[367573202,1750863051998,-460.0,0.00017817,2]
[367573204,1750863052008,-460.0,0.00017817,2]
[367573205,1750863052017,-555.06,0.00017817,2]
[367573208,1750863052026,-460.0,0.00017817,2]
[367573210,1750863052036,-460.0,0.00017817,2]
[367573212,1750863052045,-460.0,0.00017817,2]
[367573214,1750863052055,-2046.28,0.00017817,2]
[367573216,1750863052065,-7733.45,0.00017817,2]
[367573218,1750863052074,-460.0,0.00017817,2]
[367573220,1750863052084,-928.39,0.00017817,2]
[367573222,1750863052093,-1923.49,0.00017817,2]
[367573224,1750863052102,-576.56,0.00017817,2]
[367573226,1750863052112,-151.0,0.00017818,2]
[367573228,1750863052121,-151.0,0.00017818,2]
[367573230,1750863052130,-307.231184,0.00017818,2]
[367573232,1750863052140,-307.231184,0.00017818,2]
[367573234,1750863052150,-151.0,0.00017818,2]
[367573236,1750863052159,-151.0,0.00017818,2]
[367573238,1750863052168,-411.61961278,0.00017818,2]
[367573241,1750863052186,-583.10038722,0.00017818,2]
[367573243,1750863052195,-187.51,0.00017818,2]
[367573245,1750863052205,-460.0,0.00017818,2]
[367573247,1750863052214,-460.0,0.00017818,2]
[367573248,1750863052223,-559.76,0.00017818,2]
[367573249,1750863052233,-828.26,0.00017818,2]
[367573250,1750863052242,-673.51,0.00017818,2]
[367573251,1750863052251,-631.14,0.00017818,2]
[367573252,1750863052261,-2417.07,0.00017818,2]
[367573253,1750863052270,-460.0,0.00017818,2]
[367573254,1750863052279,-877.84,0.00017818,2]
[367573255,1750863052288,-153.480262,0.00017818,2]
[367573256,1750863052297,-971.87,0.00017818,2]
[367573257,1750863052306,-460.0,0.00017818,2]
[367573258,1750863052316,-1691.8210367,0.00017818,2]
[367573259,1750863052327,-907.4789633,0.00017818,2]
[367573260,1750863052337,-529.21040991,0.00017819,2]
[367573261,1750863052347,-460.0,0.00017819,2]
[367573262,1750863052357,-460.0,0.00017819,2]
[367573263,1750863052366,-549.72,0.00017819,2]
[367573265,1750863052375,-151.0,0.00017819,2]
[367573267,1750863052385,-460.0,0.00017819,2]
[367573269,1750863052394,-189.26745505,0.00017819,2]
[367573271,1750863052403,-460.0,0.00017819,2]
[367573273,1750863052412,-460.0,0.00017819,2]
[367573275,1750863052422,-512.36969052,0.00017828,2]
[367573277,1750863052431,-466.9222523,0.00017828,2]
[367573280,1750863052442,-210.0777477,0.00017828,2]
[367573282,1750863052452,-305.63153705,0.00017856,2]